bitfinex/quotes_BTCUSD_20251113
["timestamp","ask_amount","ask_price","bid_price","bid_amount"]
[1763018187430,0.0005,103880.0,103870.0,0.51554837]
[1763018187653,0.0005,103880.0,103870.0,1.92628703]
[1763018187873,0.0202,103910.0,103900.0,0.51549278]
[1763018188094,0.0202,103910.0,103900.0,1.90070348]
[1763018188539,0.03591,103910.0,103900.0,1.00950884]
[1763018188751,0.03591,103910.0,103900.0,1.20865876]
[1763018188956,0.06021,103910.0,103900.0,0.54776278]
[1763018189159,0.06025662,103910.0,103900.0,1.20865876]
[1763018189583,0.03595662,103910.0,103900.0,1.86955474]
[1763018189790,0.02024662,103910.0,103900.0,1.91297348]
[1763018189998,0.02024662,103910.0,103900.0,1.92297348]
[1763018191597,0.02024662,103910.0,103900.0,1.99192018]
[1763018192662,0.02124662,103910.0,103900.0,1.99192018]
[1763018193292,0.02124662,103910.0,103900.0,1.92297348]
[1763018193930,0.02221162,103910.0,103900.0,2.06947348]
[1763018195421,0.02221162,103910.0,103900.0,2.12099231]
[1763018195422,0.02121162,103910.0,103900.0,2.12099231]
[1763018195860,0.02121162,103910.0,103900.0,2.06947348]
[1763018196285,0.0218407,103920.0,103910.0,0.51547425]
[1763018196507,0.0218407,103920.0,103910.0,1.97965426]
[1763018196728,0.0218407,103920.0,103910.0,1.92816735]
[1763018196947,0.02208188,103920.0,103910.0,1.91816736]
[1763018197169,0.02208188,103920.0,103910.0,1.98916313]
[1763018197386,0.02208188,103920.0,103910.0,1.99916312]
[1763018197841,0.02208188,103920.0,103910.0,2.06810982]
[1763018198076,0.02208188,103920.0,103910.0,2.05810983]
[1763018198294,0.02208188,103920.0,103910.0,2.09699957]
[1763018198514,0.02308188,103920.0,103910.0,2.02805287]
[1763018199947,0.02308188,103920.0,103910.0,2.05487144]
[1763018200412,0.01,103930.0,103920.0,0.57887447]
[1763018200413,0.005,103930.0,103920.0,0.57887447]
[1763018200627,0.005,103930.0,103920.0,1.99415405]
[1763018201075,8e-05,103950.0,103940.0,0.1924187]
[1763018201293,0.00054601,103950.0,103940.0,1.95274939]
[1763018201505,0.00054601,103950.0,103940.0,1.95124591]
[1763018201730,0.00054601,103950.0,103940.0,2.03224622]
[1763018201983,0.00054601,103950.0,103940.0,2.12235033]
[1763018203300,1e-08,103950.0,103940.0,2.12235033]
[1763018203890,1e-08,103950.0,103940.0,2.11235034]
[1763018204098,1e-08,103950.0,103940.0,2.12235033]
[1763018204306,1e-08,103950.0,103940.0,2.14645117]
[1763018204500,1e-08,103950.0,103940.0,2.15645116]
[1763018205359,1e-08,103950.0,103940.0,2.10508354]
[1763018205523,1e-08,103950.0,103940.0,2.09508355]
[1763018207280,1e-08,103950.0,103940.0,1.97872721]
[1763018207480,0.05044001,103950.0,103940.0,0.2188341]
[1763018207681,0.2435635,103950.0,103940.0,0.01]
[1763018208125,0.2435635,103950.0,103920.0,0.19245485]
[1763018208126,0.1924187,103940.0,103920.0,0.19245485]
[1763018208326,0.72559453,103930.0,103910.0,0.24619569]
[1763018208490,0.03892,103920.0,103910.0,0.68679301]
[1763018208698,0.0344,103930.0,103920.0,0.19245573]
[1763018208906,0.01152,103930.0,103920.0,0.01]
[1763018209082,0.21999721,103930.0,103910.0,0.42239352]
[1763018209294,0.01604,103920.0,103910.0,0.65269218]
[1763018209510,0.03892,103920.0,103910.0,0.97569218]
[1763018209908,0.03892,103920.0,103910.0,0.75539352]
[1763018210334,0.03892,103920.0,103910.0,0.78322103]
[1763018210577,0.03892,103920.0,103910.0,0.20247425]
[1763018210578,0.27461573,103920.0,103910.0,0.20247425]
[1763018210960,0.27461573,103920.0,103910.0,0.01]
[1763018211395,0.30351422,103920.0,103910.0,0.01]
[1763018211601,0.11105849,103920.0,103910.0,0.20247425]
[1763018212041,0.11205849,103920.0,103910.0,0.20247425]
[1763018212249,0.11105849,103920.0,103910.0,0.20247425]
[1763018212448,0.11005849,103920.0,103910.0,0.20247425]
[1763018212655,0.11005849,103920.0,103910.0,0.01]
[1763018212656,0.30251422,103920.0,103910.0,0.01]
[1763018217557,0.55278158,103920.0,103910.0,0.01]
[1763018217763,0.55278158,103920.0,103890.0,0.65345905]
[1763018217764,0.19249278,103900.0,103890.0,0.68755988]
[1763018217959,0.51252014,103900.0,103890.0,0.09546845]
[1763018218213,0.28513278,103900.0,103890.0,0.03410083]
[1763018218423,0.31403814,103900.0,103890.0,0.03410083]
[1763018218782,0.5643055,103900.0,103890.0,0.03410083]
[1763018218987,0.5643055,103900.0,103890.0,0.000466]
[1763018219187,0.31403814,103900.0,103890.0,0.002466]
[1763018219386,0.5643055,103900.0,103890.0,0.002466]
[1763018220655,0.81457286,103900.0,103890.0,0.003466]
[1763018221057,0.81457286,103900.0,103890.0,0.002466]
[1763018221423,0.81457286,103900.0,103890.0,0.001466]
[1763018221620,0.81457286,103900.0,103890.0,0.002466]
[1763018221829,1.13757286,103900.0,103890.0,0.002466]
[1763018222268,1.16403896,103900.0,103890.0,0.002466]
[1763018223060,1.13757286,103900.0,103890.0,0.002466]
[1763018224516,1.15549684,103900.0,103890.0,0.002466]
[1763018224731,0.19256691,103860.0,103850.0,0.01]
[1763018224945,0.19256691,103860.0,103850.0,0.01004662]
[1763018224946,0.26305691,103860.0,103850.0,0.01004662]
[1763018225154,0.28649691,103860.0,103850.0,4.662e-05]
[1763018225364,0.53676427,103860.0,103850.0,4.662e-05]
[1763018225567,0.56568396,103860.0,103850.0,4.662e-05]
[1763018226401,0.56568396,103860.0,103850.0,0.00204662]
[1763018227447,0.81595132,103860.0,103850.0,0.00204662]
[1763018227657,0.81595132,103860.0,103850.0,4.662e-05]
[1763018227870,1.15683077,103860.0,103850.0,0.00104662]
[1763018228087,1.25525112,103860.0,103850.0,0.00204662]
[1763018228299,1.15683077,103860.0,103850.0,0.00204662]
[1763018228559,0.19262255,103830.0,103820.0,0.00281886]
[1763018228784,0.51337991,103830.0,103820.0,0.0029587]
[1763018229010,0.53681991,103830.0,103820.0,0.0029587]
[1763018229666,0.5156411,103820.0,103810.0,0.01]
[1763018229891,0.5550211,103820.0,103810.0,0.01]
[1763018230100,1.14247455,103820.0,103810.0,0.01]
[1763018231410,0.31893983,103820.0,103810.0,0.01]
[1763018231589,0.16857873,103820.0,103810.0,0.01]
[1763018231826,0.36121983,103820.0,103810.0,0.01]
[1763018232258,0.12629873,103820.0,103810.0,0.20265966]
[1763018232466,0.12629873,103820.0,103810.0,0.45292702]
[1763018232467,0.03938,103820.0,103810.0,0.45292702]
[1763018232689,0.01594,103820.0,103810.0,0.46292702]
[1763018232906,0.01594,103820.0,103810.0,0.46392702]
[1763018233114,0.01594,103820.0,103810.0,0.21365966]
[1763018233349,0.03938,103820.0,103810.0,0.021]
[1763018233562,0.03938,103820.0,103810.0,0.21365966]
[1763018233787,0.24982607,103820.0,103810.0,0.012]
[1763018234631,0.05718497,103820.0,103810.0,0.20465966]
[1763018235072,0.2787549,103820.0,103810.0,0.012]
[1763018235253,0.3210349,103820.0,103810.0,0.21465966]
[1763018235479,0.3210349,103820.0,103810.0,0.02224156]
[1763018235880,0.3210349,103820.0,103810.0,0.21490122]
[1763018236080,0.0861138,103820.0,103810.0,0.21490122]
[1763018236320,0.1283938,103820.0,103810.0,0.21490122]
[1763018236516,0.3210349,103820.0,103810.0,0.02224156]
[1763018237170,0.3210349,103820.0,103810.0,0.01224156]
[1763018237383,0.3210349,103820.0,103810.0,0.20490122]
[1763018237802,0.3210349,103820.0,103810.0,0.01224156]
[1763018238673,0.32105112,103820.0,103810.0,0.01224156]
[1763018239146,0.32105112,103820.0,103810.0,0.01124156]
[1763018239361,0.32105112,103820.0,103810.0,0.20390122]
[1763018239584,0.32105112,103820.0,103810.0,0.20290122]
[1763018240058,0.12841002,103820.0,103810.0,0.20290122]
[1763018240280,0.32105112,103820.0,103810.0,0.21290122]
[1763018240498,0.32105112,103820.0,103810.0,0.02024156]
[1763018241210,0.32105112,103820.0,103810.0,0.21290122]
[1763018241437,0.32105112,103820.0,103810.0,0.02024156]
[1763018241806,0.32105112,103820.0,103810.0,0.07024156]
[1763018242245,0.12841002,103820.0,103810.0,0.26290122]
[1763018242647,0.32105112,103820.0,103810.0,0.26290122]
[1763018242810,0.32105112,103820.0,103810.0,0.07024156]
[1763018243196,0.32105112,103820.0,103810.0,0.01024156]
[1763018244695,0.74123741,103820.0,103810.0,0.01024156]
[1763018248105,0.71230858,103820.0,103810.0,0.01024156]
[1763018248529,1.03530858,103820.0,103810.0,0.01024156]
[1763018249557,1.03530858,103820.0,103810.0,1.56e-06]
[1763018250189,1.03526858,103820.0,103810.0,1.56e-06]
[1763018250622,0.58284229,103820.0,103810.0,1.56e-06]
[1763018250829,1.04526858,103820.0,103810.0,1.56e-06]
[1763018251247,1.00302858,103820.0,103810.0,1.56e-06]
[1763018251459,0.62508229,103820.0,103810.0,1.56e-06]
[1763018251672,0.66976102,103820.0,103810.0,1.56e-06]
[1763018251888,0.71204102,103820.0,103810.0,1.56e-06]
[1763018252105,0.25984229,103820.0,103810.0,1.56e-06]
[1763018252343,0.30208229,103820.0,103810.0,1.56e-06]
[1763018253004,0.38900102,103820.0,103810.0,1.56e-06]
[1763018253925,0.80918731,103820.0,103810.0,1.56e-06]
[1763018254139,0.38900102,103820.0,103810.0,1.56e-06]
[1763018254721,0.38904102,103820.0,103810.0,1.56e-06]
[1763018255153,0.34676102,103820.0,103810.0,1.56e-06]
[1763018255478,0.38904102,103820.0,103810.0,1.56e-06]
[1763018255684,0.34676102,103820.0,103810.0,1.56e-06]
[1763018255837,0.38904102,103820.0,103810.0,1.56e-06]
[1763018256041,0.34676102,103820.0,103810.0,0.19266122]
[1763018256246,0.34676102,103820.0,103810.0,1.56e-06]
[1763018256475,0.38904102,103820.0,103810.0,1.56e-06]
[1763018257424,0.38904102,103820.0,103810.0,0.61284751]
[1763018257803,0.38904102,103820.0,103810.0,1.56e-06]
[1763018258446,0.34676102,103820.0,103810.0,0.19266122]
[1763018258867,0.06720119,103820.0,103810.0,0.61284751]
[1763018259076,0.30208229,103820.0,103810.0,0.61284751]
[1763018259279,0.10944119,103820.0,103810.0,0.61284751]
[1763018259711,0.06720119,103820.0,103810.0,0.61284751]
[1763018259924,0.10926119,103820.0,103810.0,0.67284751]
[1763018260327,0.06702119,103820.0,103810.0,0.67284751]
[1763018260972,0.02782119,103820.0,103810.0,0.67284751]
[1763018261169,0.02782119,103820.0,103810.0,1.04926625]
[1763018261385,0.01,103820.0,103810.0,1.04926625]
[1763018262306,0.01,103820.0,103810.0,1.10163387]
[1763018262958,0.01,103820.0,103810.0,1.10263387]
[1763018263308,0.01,103820.0,103810.0,1.10163387]
[1763018264136,0.01,103820.0,103810.0,1.10063387]
[1763018264380,0.01,103820.0,103810.0,1.15132242]
[1763018264554,0.01197,103850.0,103840.0,0.192604]
[1763018264730,0.01197,103850.0,103840.0,0.63279029]
[1763018264731,0.02999844,103850.0,103840.0,0.63279029]
[1763018264930,0.01802844,103850.0,103840.0,0.95579029]
[1763018265150,0.01802844,103850.0,103840.0,1.41939532]
[1763018265522,0.01231,103860.0,103840.0,1.41939532]
[1763018265523,0.01197,103870.0,103860.0,0.19256691]
[1763018265742,0.26553668,103870.0,103860.0,0.43018629]
[1763018265954,0.26553668,103870.0,103860.0,0.6227532]
[1763018266172,0.07298831,103870.0,103860.0,0.6227532]
[1763018266588,0.26553668,103870.0,103860.0,0.6227532]
[1763018266809,0.26553668,103870.0,103860.0,0.43018629]
[1763018267219,0.26553668,103870.0,103850.0,0.23486545]
[1763018267439,0.23241691,103860.0,103850.0,0.56786545]
[1763018267652,0.03985,103860.0,103850.0,0.98805174]
[1763018267853,0.23241691,103860.0,103850.0,0.98805174]
[1763018268058,0.03985,103860.0,103850.0,0.98805174]
[1763018268272,0.23241691,103860.0,103850.0,0.79546629]
[1763018268486,0.27469691,103860.0,103840.0,0.202604]
[1763018268712,0.05182,103850.0,103840.0,0.202604]
[1763018268895,0.24440545,103850.0,103840.0,0.202604]
[1763018269483,0.05182,103850.0,103840.0,0.202604]
[1763018269654,0.24440545,103850.0,103830.0,0.63243483]
[1763018269850,0.03985,103840.0,103830.0,0.95543483]
[1763018270065,0.05784478,103840.0,103830.0,0.95543483]
[1763018270966,0.03985,103840.0,103830.0,0.95543483]
[1763018271298,0.03985,103840.0,103830.0,1.00543483]
[1763018272116,0.03523,103850.0,103840.0,0.192604]
[1763018272344,0.27009545,103850.0,103840.0,0.43018629]
[1763018272577,0.27009545,103850.0,103830.0,0.57524854]
[1763018272578,0.192604,103840.0,103830.0,0.05]
[1763018272793,0.209194,103840.0,103820.0,0.2026403]
[1763018273018,0.24444255,103830.0,103820.0,0.01]
[1763018273236,0.24444255,103830.0,103820.0,0.62282739]
[1763018273463,0.05182,103830.0,103820.0,0.62282739]
[1763018274187,0.05382,103830.0,103820.0,0.62282739]
[1763018274424,0.24644255,103830.0,103820.0,0.62282739]
[1763018274636,0.05382,103830.0,103820.0,0.62282739]
[1763018275140,0.05582,103830.0,103820.0,0.62282739]
[1763018276458,0.05582,103830.0,103820.0,0.67282739]
[1763018278899,0.06582,103830.0,103820.0,0.67282739]
[1763018279550,0.06582,103830.0,103820.0,0.2526411]
[1763018279772,0.06582,103830.0,103820.0,0.67282739]
[1763018280629,0.06582,103830.0,103820.0,0.2526411]
[1763018280849,0.06582,103830.0,103820.0,0.67282739]
[1763018282683,0.014,103830.0,103820.0,1.05924613]
[1763018282904,0.014,103830.0,103820.0,1.12916231]
[1763018287645,0.014,103830.0,103820.0,1.20255258]
[1763018288329,0.014,103830.0,103820.0,1.12916231]
[1763018288566,0.01197,103850.0,103840.0,0.63204204]
[1763018288803,0.01197,103850.0,103840.0,0.67432204]
[1763018289013,0.03368,103860.0,103850.0,0.19258545]
[1763018289245,0.03381966,103860.0,103850.0,0.62277174]
[1763018289448,0.05045966,103860.0,103850.0,0.67449531]
[1763018289873,0.05045966,103860.0,103850.0,0.19258545]
[1763018290075,0.05045966,103860.0,103850.0,0.61277174]
[1763018290682,0.05045966,103860.0,103850.0,0.19258545]
[1763018290893,0.24302657,103860.0,103850.0,0.19258545]
[1763018291093,0.05045966,103860.0,103850.0,0.61277174]
[1763018291933,0.05045966,103860.0,103850.0,0.61377174]
[1763018292137,0.05045966,103860.0,103850.0,0.62377174]
[1763018292337,0.05045966,103860.0,103850.0,0.20358545]
[1763018292562,0.05045966,103860.0,103850.0,0.62377174]
[1763018292762,0.24302657,103860.0,103850.0,0.62377174]
[1763018292972,0.24302657,103860.0,103850.0,0.20358545]
[1763018294911,0.24302657,103860.0,103850.0,0.19358545]
[1763018295106,0.24302657,103860.0,103850.0,0.44414233]
[1763018295633,0.05045966,103860.0,103850.0,0.44414233]
[1763018297358,0.05045966,103860.0,103850.0,0.45414233]
[1763018298607,0.01013966,103860.0,103850.0,0.70469921]
[1763018298865,0.01013966,103860.0,103850.0,0.75642278]
[1763018299284,0.01013966,103860.0,103850.0,0.70469921]
[1763018299943,0.01013966,103860.0,103850.0,0.45514233]
[1763018300230,0.01013966,103860.0,103850.0,0.55028464]
[1763018300475,0.01013966,103860.0,103850.0,0.54928464]
[1763018300678,0.01013966,103860.0,103850.0,0.54828464]
[1763018300893,0.01013966,103860.0,103850.0,0.54928464]
[1763018301247,0.01013966,103860.0,103850.0,0.49656107]
[1763018301456,0.01013966,103860.0,103850.0,0.54828464]
[1763018302254,0.01013966,103860.0,103850.0,1.12184152]
[1763018302916,0.01013966,103860.0,103850.0,0.87128464]
[1763018303253,0.01013966,103860.0,103850.0,0.81956107]
[1763018304871,0.01013966,103860.0,103850.0,1.07011795]
[1763018305069,0.01013966,103860.0,103850.0,0.87128464]
[1763018305276,0.01013966,103860.0,103850.0,1.12184152]
[1763018306164,0.01013966,103860.0,103850.0,1.26834152]
[1763018306397,0.01013966,103860.0,103850.0,1.27834152]
[1763018308928,0.01013966,103860.0,103850.0,2.0995881]
[1763018310827,0.68212335,103860.0,103840.0,0.25432366]
[1763018311046,0.21982545,103850.0,103840.0,0.202604]
[1763018311257,0.24290545,103850.0,103840.0,0.42299739]
[1763018311464,0.24290545,103850.0,103840.0,0.64339078]
[1763018311465,0.05032,103850.0,103840.0,0.64339078]
[1763018312307,0.24290545,103850.0,103840.0,0.64339078]
[1763018312742,0.05032,103850.0,103840.0,0.64439078]
[1763018312944,0.24290545,103850.0,103840.0,0.45418097]
[1763018313381,0.24290545,103850.0,103840.0,0.50590454]
[1763018313694,0.24290545,103850.0,103840.0,0.31430054]
[1763018314914,0.24290545,103850.0,103840.0,0.25632757]
[1763018315111,0.05032,103850.0,103840.0,0.25632757]
[1763018315330,0.24290545,103850.0,103840.0,0.25632757]
[1763018317410,0.05032,103850.0,103840.0,0.25632757]
[1763018317622,0.24290545,103850.0,103840.0,0.50690454]
[1763018318445,0.24290545,103850.0,103840.0,0.05372357]
[1763018318629,0.24290545,103850.0,103840.0,0.002]
[1763018318630,0.49348242,103850.0,103840.0,0.002]
[1763018318835,0.52240523,103850.0,103840.0,0.002]
[1763018319038,0.60932396,103850.0,103840.0,0.002]
[1763018321465,0.60932396,103850.0,103840.0,0.001]
[1763018321613,0.19262255,103830.0,103820.0,0.06172357]
[1763018321808,0.26222255,103830.0,103820.0,0.50494164]
[1763018322052,0.05032,103830.0,103820.0,0.50494164]
[1763018322390,0.24294255,103830.0,103820.0,0.45321807]
[1763018323316,0.24294255,103830.0,103820.0,0.31326973]
[1763018323782,0.24294255,103830.0,103820.0,0.06369276]
[1763018323979,0.24294255,103830.0,103820.0,0.11369276]
[1763018324483,0.24294255,103830.0,103820.0,0.10369276]
[1763018326572,0.49351952,103830.0,103820.0,0.10369276]
[1763018326773,0.49351952,103830.0,103820.0,0.002]
[1763018326774,0.58043825,103830.0,103820.0,0.002]
[1763018327155,1.18294642,103830.0,103820.0,0.002]
[1763018327362,0.93236945,103830.0,103820.0,0.002]
[1763018327580,1.18294642,103830.0,103820.0,0.001]
[1763018327786,1.18294642,103830.0,103810.0,1.56e-06]
[1763018327787,0.5156411,103820.0,103810.0,1.56e-06]
[1763018327992,1.09778504,103820.0,103810.0,1.56e-06]
[1763018328618,1.15120377,103820.0,103810.0,1.56e-06]
[1763018329038,1.15120377,103820.0,103810.0,0.00100156]
[1763018329252,1.18051608,103820.0,103810.0,0.00100156]
[1763018329506,1.27893643,103820.0,103810.0,0.00200156]
[1763018329924,1.18051608,103820.0,103810.0,0.00100156]
[1763018330351,1.18051608,103820.0,103810.0,1.56e-06]
[1763018332373,0.84716807,103820.0,103810.0,1.56e-06]
[1763018332820,0.5965911,103820.0,103810.0,1.56e-06]
[1763018333026,1.0380746,103820.0,103810.0,1.56e-06]
[1763018333295,1.0381146,103820.0,103810.0,1.56e-06]
[1763018333580,0.81737285,103820.0,103810.0,1.56e-06]
[1763018333816,0.49437285,103820.0,103810.0,1.56e-06]
[1763018334059,0.7151146,103820.0,103810.0,1.56e-06]
[1763018335100,0.52445264,103820.0,103810.0,1.56e-06]
[1763018335350,0.2736311,103820.0,103810.0,1.56e-06]
[1763018336323,0.2312711,103820.0,103810.0,1.56e-06]
[1763018336527,0.2736311,103820.0,103810.0,1.56e-06]
[1763018337429,0.2736311,103820.0,103810.0,0.44348276]
[1763018337646,0.2735911,103820.0,103810.0,0.2608231]
[1763018338262,0.2736311,103820.0,103810.0,0.2608231]
[1763018338548,0.2736311,103820.0,103810.0,0.2618231]
[1763018338975,0.2736311,103820.0,103810.0,0.45448276]
[1763018339147,0.08099,103820.0,103810.0,0.45548276]
[1763018339351,0.2736311,103820.0,103810.0,0.45548276]
[1763018339929,0.2736311,103820.0,103810.0,0.2628231]
[1763018340549,0.2736311,103820.0,103810.0,0.2528231]
[1763018340763,0.2736311,103820.0,103810.0,0.2628231]
[1763018341181,0.2736311,103820.0,103810.0,0.45548276]
[1763018341392,0.2736311,103820.0,103810.0,0.2628231]
[1763018342271,0.2736311,103820.0,103810.0,0.01200156]
[1763018342454,0.2736311,103820.0,103810.0,0.00200156]
[1763018344432,0.29162403,103820.0,103810.0,0.00200156]
[1763018345316,0.29162608,103820.0,103810.0,0.00200156]
[1763018346127,0.54244762,103820.0,103810.0,0.00200156]
[1763018346909,0.50008762,103820.0,103810.0,0.19466122]
[1763018347117,0.08091,103820.0,103810.0,0.20466122]
[1763018348148,0.03863,103820.0,103810.0,0.20466122]
[1763018348349,0.03863,103820.0,103810.0,0.45548276]
[1763018348846,0.03863,103820.0,103810.0,0.20466122]
[1763018349059,0.2312711,103820.0,103810.0,0.20466122]
[1763018349280,0.03863,103820.0,103810.0,0.20466122]
[1763018349872,0.2312711,103820.0,103810.0,0.01200156]
[1763018350082,0.24928239,103820.0,103810.0,0.01200156]
[1763018350301,0.05664129,103820.0,103810.0,0.20466122]
[1763018350518,0.24928239,103820.0,103810.0,0.20466122]
[1763018351500,0.24928239,103820.0,103810.0,0.01200156]
[1763018352210,0.24928239,103820.0,103810.0,0.20466122]
[1763018353370,0.24928239,103820.0,103810.0,0.01200156]
[1763018353779,0.05664129,103820.0,103810.0,0.20466122]
[1763018353980,0.24928239,103820.0,103810.0,0.20466122]
[1763018354760,0.24928239,103820.0,103810.0,0.01200156]
[1763018355920,0.03356129,103820.0,103810.0,0.44548276]
[1763018356121,0.01801129,103820.0,103810.0,0.45548276]
[1763018356348,0.22665239,103820.0,103810.0,0.20466122]
[1763018356547,0.05786129,103820.0,103810.0,0.20466122]
[1763018356954,0.25050239,103820.0,103810.0,0.20466122]
[1763018357570,0.25050239,103820.0,103810.0,0.62492838]
[1763018358501,0.25050239,103820.0,103810.0,0.20466122]
[1763018358921,0.25050239,103820.0,103810.0,0.49885267]
[1763018361153,0.25050239,103820.0,103810.0,0.01200156]
[1763018361332,0.25050239,103820.0,103810.0,0.49885267]
[1763018361773,0.25050239,103820.0,103810.0,0.30619301]
[1763018361974,0.25050239,103820.0,103810.0,0.01200156]
[1763018362111,0.25050239,103820.0,103810.0,0.30619301]
[1763018362531,0.25050239,103820.0,103810.0,0.01200156]
[1763018362733,0.25050239,103820.0,103810.0,0.00200156]
[1763018363506,0.25050239,103820.0,103810.0,0.19466122]
[1763018363739,0.25050239,103820.0,103810.0,0.48885267]
[1763018364351,0.25050239,103820.0,103810.0,0.29619301]
[1763018364766,0.25050239,103820.0,103810.0,0.48885267]
[1763018365008,0.25050239,103820.0,103810.0,0.19466122]
[1763018365213,0.25050239,103820.0,103810.0,0.48885267]
[1763018365388,0.25050239,103820.0,103810.0,0.53885267]
[1763018366046,0.26213239,103820.0,103810.0,0.53885267]
[1763018367586,0.2441211,103820.0,103810.0,0.53885267]
[1763018367833,0.2441211,103820.0,103810.0,0.34619301]
[1763018368512,0.2441211,103820.0,103810.0,0.05200156]
[1763018375812,0.02763,103820.0,103810.0,0.24466122]
[1763018376022,0.02763,103820.0,103810.0,0.54885267]
[1763018376023,0.05383,103820.0,103810.0,0.54885267]
[1763018376484,0.07025,103820.0,103810.0,0.54885267]
[1763018376691,0.05261,103820.0,103810.0,0.54885267]
[1763018377256,0.01169,103830.0,103820.0,0.1926411]
[1763018377502,0.01169,103830.0,103820.0,0.49683255]
[1763018377840,0.02811,103830.0,103820.0,0.49683255]
[1763018378246,0.05267,103830.0,103820.0,0.49683255]
[1763018378422,0.05267,103830.0,103820.0,0.49783255]
[1763018378964,0.05267,103830.0,103820.0,0.49883255]
[1763018382124,0.24529255,103830.0,103820.0,0.012]
[1763018382337,0.24529255,103830.0,103820.0,0.2046411]
[1763018382776,0.24529255,103830.0,103820.0,0.012]
[1763018382980,0.539484,103830.0,103820.0,0.002]
[1763018384081,0.539484,103830.0,103820.0,0.1946411]
[1763018384289,0.24529255,103830.0,103820.0,0.001]
[1763018384714,0.24529255,103830.0,103810.0,0.20266038]
[1763018384919,0.05862,103820.0,103810.0,0.20266038]
[1763018385141,0.08318,103820.0,103810.0,0.20266038]
[1763018385962,0.08318,103820.0,103810.0,0.20366038]
[1763018386170,0.04098,103820.0,103810.0,0.20366038]
[1763018386391,0.04098,103820.0,103810.0,0.20466038]
[1763018387186,0.04098,103820.0,103810.0,0.20366038]
[1763018387390,0.04098,103820.0,103810.0,0.20466038]
[1763018387821,0.2336211,103820.0,103810.0,0.20466038]
[1763018388864,0.04098,103820.0,103810.0,0.20466038]
[1763018389522,0.01169,103830.0,103820.0,0.1926411]
[1763018389735,0.03619,103840.0,103830.0,0.20262255]
[1763018389937,0.07839,103840.0,103830.0,0.496814]
[1763018390145,0.287414,103840.0,103830.0,0.20262255]
[1763018390356,0.09481,103840.0,103830.0,0.20262255]
[1763018390998,0.09581,103840.0,103830.0,0.20262255]
[1763018391213,0.288414,103840.0,103830.0,0.20262255]
[1763018391469,0.288414,103840.0,103830.0,0.01]
[1763018391855,0.288414,103840.0,103830.0,0.20262255]
[1763018392978,0.288414,103840.0,103830.0,0.01]
[1763018393181,0.19262255,103830.0,103820.0,0.1926411]
[1763018393312,0.23360255,103830.0,103820.0,0.49683255]
[1763018393500,0.04098,103830.0,103820.0,0.49683255]
[1763018393900,0.04098,103830.0,103820.0,0.54683255]
[1763018394157,0.04098,103830.0,103820.0,0.2526411]
[1763018394356,0.04098,103830.0,103820.0,0.2536411]
[1763018394671,0.04098,103830.0,103820.0,0.54783255]
[1763018395167,0.04098,103830.0,103820.0,0.2536411]
[1763018395617,0.04098,103830.0,103820.0,0.54783255]
[1763018396782,0.04098,103830.0,103820.0,0.2536411]
[1763018396984,0.04098,103830.0,103820.0,0.2436411]
[1763018397243,0.23360255,103830.0,103820.0,0.2436411]
[1763018398406,0.23360255,103830.0,103820.0,0.051]
[1763018398609,0.23360255,103830.0,103820.0,0.2436411]
[1763018398781,0.04098,103830.0,103820.0,0.2436411]
[1763018400521,0.23360255,103830.0,103820.0,0.2436411]
[1763018401185,0.24544255,103830.0,103820.0,0.2436411]
[1763018401638,0.24544255,103830.0,103820.0,0.051]
[1763018401851,0.24544255,103830.0,103820.0,0.2436411]
[1763018405269,0.05282,103830.0,103820.0,0.2436411]
[1763018406143,0.05282,103830.0,103820.0,0.54783255]
[1763018407278,0.01184,103830.0,103820.0,0.832024]
[1763018407500,0.01184,103830.0,103820.0,0.842024]
[1763018407948,0.01184,103830.0,103820.0,0.54783255]
[1763018408164,0.02785,103830.0,103820.0,0.54783255]
[1763018408598,0.01184,103830.0,103820.0,0.54783255]
[1763018408819,0.07686,103840.0,103830.0,0.20262255]
[1763018409048,0.01163,103840.0,103830.0,0.486814]
[1763018409268,0.01163,103840.0,103830.0,0.496814]
[1763018409485,0.03472,103850.0,103840.0,0.192604]
[1763018409710,0.03472,103850.0,103840.0,0.49679545]
[1763018409711,0.05073,103850.0,103840.0,0.49679545]
[1763018410162,0.0277,103850.0,103840.0,0.49679545]
[1763018410864,0.01169,103850.0,103840.0,0.49679545]
[1763018411337,0.08772,103860.0,103840.0,0.49679545]
[1763018411558,0.02262966,103860.0,103850.0,0.4967769]
[1763018411994,0.06166966,103860.0,103850.0,0.4967769]
[1763018412658,0.06166966,103860.0,103850.0,0.20258545]
[1763018415395,0.03863966,103860.0,103850.0,0.4967769]
[1763018416104,0.06166966,103860.0,103850.0,0.4967769]
[1763018416776,0.03863966,103860.0,103850.0,0.4967769]
[1763018416983,0.01013966,103860.0,103850.0,0.4967769]
[1763018417199,0.01013966,103860.0,103850.0,0.86319564]
[1763018417409,0.01013966,103860.0,103850.0,0.87319564]
[1763018419027,0.01013966,103860.0,103850.0,1.24022114]
[1763018420763,0.01013966,103860.0,103850.0,0.57900419]
[1763018420929,0.01013966,103860.0,103850.0,1.24022114]
[1763018422031,0.02614966,103860.0,103850.0,1.01981549]
[1763018422250,0.04917966,103860.0,103850.0,0.52558545]
[1763018422455,0.04917966,103860.0,103850.0,0.20258545]
[1763018423076,0.24174657,103860.0,103850.0,0.20258545]
[1763018423278,0.04917966,103860.0,103850.0,0.20258545]
[1763018430058,0.68255787,103860.0,103850.0,0.01]
[1763018430295,0.72475787,103860.0,103840.0,0.202604]
[1763018430485,0.03969,103850.0,103840.0,0.202604]
[1763018431948,0.03969,103850.0,103840.0,0.6434153]
[1763018432372,0.03939,103850.0,103840.0,0.6434153]
[1763018438317,0.03326966,103860.0,103850.0,0.51558545]
[1763018438522,0.03326966,103860.0,103850.0,1.1868024]
[1763018438727,0.04982966,103860.0,103850.0,1.1868024]
[1763018439137,0.06231966,103860.0,103850.0,1.1868024]
[1763018439756,0.03918966,103860.0,103850.0,1.1868024]
[1763018439961,0.03918966,103860.0,103850.0,1.1878024]
[1763018440210,0.03918966,103860.0,103850.0,1.24222114]
[1763018440450,0.02262966,103860.0,103850.0,1.24222114]
[1763018440706,0.02262966,103860.0,103850.0,1.24122114]
[1763018441161,0.02262966,103860.0,103850.0,1.24022114]
[1763018441402,0.02242966,103860.0,103850.0,1.24022114]
[1763018441963,0.06211966,103860.0,103850.0,1.24022114]
[1763018442453,0.06211966,103860.0,103850.0,1.01981549]
[1763018442897,0.06211966,103860.0,103850.0,1.24022114]
[1763018443097,0.03898966,103860.0,103850.0,1.24022114]
[1763018443550,0.06211966,103860.0,103850.0,1.24022114]
[1763018444719,0.06211966,103860.0,103850.0,1.23022114]
[1763018444921,0.06211966,103860.0,103850.0,1.00981549]
[1763018445834,0.02242966,103860.0,103850.0,1.23022114]
[1763018446034,0.00993966,103860.0,103850.0,1.24022114]
[1763018446584,0.02242966,103860.0,103850.0,1.24022114]